[Event "Italian-ch Semifinal 2022"]
[Site "Acqui Terme"]
[Date "2022.06.17"]
[Round "7.10"]
[White "Perossa, Nicolas"]
[Black "Pegno, Mattia"]
[Result "0-1"]
[ECO "B31"]
[WhiteElo "2139"]
[BlackElo "2065"]
[Annotator "TA"]
[PlyCount "114"]
[EventDate "2022.06.15"]
[EventType "swiss"]
[EventCountry "ITA"]
[SourceTitle "playchess.com"]
[Source "ChessBase"]
[SourceQuality "1"]
[TimeControl "40/5400+30:1800+30"]

{[%evp 11,114,9,39,12,14,8,8,6,6,6,6,6,6,6,10,11,17,23,27,21,25,7,9,0,9,12,8,9,25,18,22,20,22,18,18,22,19,0,0,0,0,0,0,0,0,0,0,-374,-381,-381,-377,-376,-351,-400,-400,-407,-385,-597,-597,-731,-740,-706,-687,-860,-840,-764,-750,-587,-743,-726,-714,-604,-608,-885,-839,-718,-587,-1379,-1484,-5097,-4296,-5716,-5197,-29969,-29971,-29973,-29974,-29973,-29974,-29976,-29977,-29975,-29974,-29978,-29979,-29979,-29980,-29986,-29987,-29987,-29988,-29987,-29988,-29989,-29990]} 1. e4 {[%emt 0:00:02]} c5 {[%emt 0:00:08]} 2. Nf3 {[%emt 0:00:08]} Nc6 {[%emt 0:00:06]} 3. Bb5 {[%emt 0:00:25]} g6 {[%emt 0:00:10]} 4. O-O {[%emt 0:00:32]} Bg7 {[%emt 0:00:08]} 5. Re1 {[%emt 0:02:48]} Nf6 {[%emt 0:00:14]} 6. Bxc6 {[%emt 0:03:31]} dxc6 {[%emt 0:00:28]} 7. Nc3 {[%emt 0:00:11] B31: Sicilian: 2...Nc6 3 Bb5 g6.} Bg4 {[%emt 0:12:03]} 8. d3 {[%emt 0:03:20]} Nd7 {[%emt 0:03:59]} 9. h3 {[%emt 0:00:31] The position is equal.} Bxf3 {[%emt 0:00:25]} 10. Qxf3 {[%emt 0:00:23] [#]} b6 $146 {[%emt 0:09:48]} ({Predecessor:} 10... Ne5 11. Qe2 c4 12. Rd1 cxd3 13. cxd3 O-O 14. d4 Nd7 15. Be3 e6 16. Rac1 Nb6 {1-0 (37) Brankovic,V (2121)-Stanimirovic,B (2057) Belgrade 2019}) 11. Qg3 {[%emt 0:05:06]} e5 {[%emt 0:22:35]} 12. Nd1 {[%emt 0:20:12][%cal Bc3d1,Bd1e3,Be3c4][%mdl 32]} O-O {[%emt 0:09:53]} 13. Ne3 {[%emt 0:00:20]} Qe7 {[%emt 0:06:04]} 14. a4 {[%emt 0:04:01]} Rfd8 {[%emt 0:19:02]} 15. Bd2 {[%emt 0:14:41]} Nf8 {[%emt 0:06:45]} 16. Nc4 {[%emt 0:08:43]} Ne6 {[%emt 0:03:08]} 17. Be3 {[%emt 0:05:42]} ({Don't play} 17. Nxe5 Nd4 18. f4 Bxe5 19. fxe5 Nxc2 $17) 17... f6 {[%emt 0:01:29]} 18. h4 {[%emt 0:09:09]} Qf7 {[%emt 0:02:30]} 19. Rf1 {[%emt 0:04:16][%cal Be1f1,Bf1f4,Bf4g4][%mdl 32]} h5 {[%emt 0:00:29]} 20. f4 {[%emt 0:07:01]} exf4 {[%emt 0:00:04]} 21. Bxf4 {[%emt 0:00:05]} Nxf4 {[%emt 0:00:47]} 22. Rxf4 {[%emt 0:01:50]} Kh7 {[%emt 0:00:25]} 23. Raf1 {[%emt 0:00:29] [#] And now Ne5 would win.} Qe6 {[%emt 0:00:28] Against Ne5} 24. Qf3 {[%emt 0:01:51]} Rf8 {[%emt 0:00:45]} 25. g4 {[%emt 0:05:24]} hxg4 {[%emt 0:00:16]} 26. Rxg4 {[%emt 0:00:02][%cal Oh4h5]} f5 {[%emt 0:00:35]} 27. Rf4 {[%emt 0:01:16][%cal Re4f5]} fxe4 {[%emt 0:00:26]} 28. Qxe4 {[%emt 0:00:16]} Bd4+ {[%emt 0:00:42]} 29. Kh2 $2 {[%emt 0:00:13][%mdl 8192] White is on the road to losing.} (29. Kg2 $11 {and White has nothing to worry.} Qxe4+ 30. Rxe4) 29... Qxe4 $19 {[%emt 0:00:19]} 30. dxe4 {[%emt 0:00:02]} Rxf4 31. Rxf4 {[%emt 0:00:00][%mdl 4096] Endgame KRB-KRN} b5 {[%emt 0:00:45]} 32. c3 {[%emt 0:00:09]} Bg7 {[%emt 0:00:37]} ({Don't blunder} 32... bxc4 $2 33. cxd4 cxd4 34. Kg2 $19) 33. axb5 {[%emt 0:00:16]} cxb5 {[%emt 0:00:07]} 34. Ne3 {[%emt 0:00:18]} (34. e5 $142) 34... Be5 {[%emt 0:00:07]} 35. Kg3 {[%emt 0:00:06]} Bxf4+ {[%emt 0:01:14]} 36. Kxf4 {[%emt 0:00:01] KR-KN} Rf8+ {[%emt 0:00:30]} 37. Ke5 {[%emt 0:00:28]} c4 {[%emt 0:00:39]} 38. Ng4 {[%emt 0:02:51]} Rd8 {[%emt 0:00:31] Hoping for ...Kg7.} 39. Nf6+ {[%emt 0:00:12]} Kg7 {[%emt 0:00:06] aiming for ...Rd2.} 40. Nd5 {[%emt 0:00:00]} Kf7 {[%emt 0:00:00]} 41. Nc7 {[%emt 0:01:22]} a6 {[%emt 0:16:15]} 42. Nxa6 {[%emt 0:01:22]} Rd2 {[%emt 0:00:14]} 43. Nc7 {[%emt 0:04:52]} Rxb2 {[%emt 0:00:26]} 44. Nd5 {[%emt 0:00:07]} Rh2 {[%emt 0:05:53]} 45. Kd4 {[%emt 0:08:08]} Rxh4 {[%emt 0:00:22]} 46. Nc7 {[%emt 0:00:01]} g5 {[%emt 0:08:09][%cal Bg6g5,Bg5g4][%mdl 32]} 47. Nxb5 {[%emt 0:00:05]} g4 {[%emt 0:00:08] Black mates.} 48. Ke3 {[%emt 0:00:18]} g3 {[%emt 0:01:29]} 49. Kf3 {[%emt 0:00:04] [#]} Rg4 $3 {[%emt 0:00:46][%mdl 512]} 50. Kg2 {[%emt 0:02:05]} (50. Nd6+ Ke6) 50... Ke6 {[%emt 0:01:02]} 51. Na3 {[%emt 0:00:10]} Rxe4 {[%emt 0:00:29]} 52. Kxg3 {[%emt 0:00:04]} Re3+ {[%emt 0:00:30]} 53. Kf4 {[%emt 0:00:04]} Rxc3 {[%emt 0:00:19]} 54. Nb1 {[%emt 0:00:29]} Rd3 {[%emt 0:00:10]} 55. Ke4 {[%emt 0:00:05]} Kd6 {[%emt 0:00:10]} 56. Kf4 {[%emt 0:00:04]} Kc5 {[%emt 0:00:07]} 57. Ke4 {[%emt 0:00:04]} Kb4 {[%emt 0:03:44] Weighted Error Value: White=0.68/Black=0.01 (flawless)} 0-1

[Event "Italian-ch Semifinal 2022"]
[Site "Acqui Terme"]
[Date "2022.06.19"]
[Round "9.1"]
[White "Barp, Alberto"]
[Black "Corvi, Marco"]
[Result "1-0"]
[ECO "E63"]
[WhiteElo "2384"]
[BlackElo "2318"]
[Annotator "TA"]
[PlyCount "77"]
[EventDate "2022.06.15"]
[EventType "swiss"]
[EventCountry "ITA"]
[SourceTitle "playchess.com"]
[Source "ChessBase"]
[SourceQuality "1"]
[TimeControl "40/5400+30:1800+30"]

{[%evp 18,77,29,18,33,16,19,17,17,4,23,0,0,0,0,-9,-4,-4,-9,-6,43,52,43,35,45,28,29,36,31,31,37,22,45,35,50,51,52,54,67,71,66,76,88,78,105,105,115,128,140,140,140,134,139,126,141,130,123,123,120,114,12837,5317]} 1. d4 {[%emt 0:05:26]} Nf6 {[%emt 0:00:13]} 2. c4 {[%emt 0:00:28]} g6 {[%emt 0:00:18]} 3. g3 {[%emt 0:00:30]} Bg7 {[%emt 0:00:07]} 4. Bg2 {[%emt 0:00:04]} O-O {[%emt 0:00:09]} 5. Nc3 {[%emt 0:00:05]} d6 {[%emt 0:00:05]} 6. Nf3 {[%emt 0:00:08][%cal Bg1f3,Bf3e1,Be1d3,Bd3b4][%mdl 32]} Nc6 {[%emt 0:01:24]} 7. O-O {[%emt 0:00:07]} Bd7 {[%emt 0:03:26]} 8. h3 {[%emt 0:10:44]} a6 {[%emt 0:00:50]} 9. e4 {[%emt 0:03:08]} e5 {[%emt 0:01:40]} 10. d5 {[%emt 0:12:49]} Ne7 {[%emt 0:02:03] E63: King's Indian: Fianchetto: Panno Variation with 7...a6.} 11. Ne1 {[%emt 0:04:23]} b5 {[%emt 0:18:48] [#]} 12. cxb5 $146 {[%emt 0:00:48]} ({Predecessor:} 12. b3 Qb8 13. Nd3 c6 14. Be3 cxd5 15. cxd5 Nxe4 16. Nxe4 f5 17. Ng5 e4 18. Nf4 Bxa1 19. Qxa1 {1-0 (29) Kirk,E (2111)-Cantin,L (1929) Montlucon 2011}) 12... axb5 {[%emt 0:00:33] The position is equal.} 13. Nd3 {[%emt 0:01:28]} Qb8 {[%emt 0:03:21]} 14. Nb4 {[%emt 0:07:50]} c5 {[%emt 0:01:51]} 15. dxc6 $1 {[%emt 0:00:05]} Nxc6 {[%emt 0:00:35]} 16. Ncd5 {[%emt 0:06:04]} Nxd5 {[%emt 0:04:25]} 17. Nxd5 {[%emt 0:01:28]} Be6 {[%emt 0:00:37]} 18. Be3 {[%emt 0:01:28]} Bxd5 {[%emt 0:03:13]} (18... Nd4 $11 {is more appropriate.}) 19. Qxd5 $14 {[%emt 0:03:51]} Nd4 {[%emt 0:00:33]} 20. Bxd4 {[%emt 0:07:00]} exd4 {[%emt 0:00:56]} 21. e5 {[%emt 0:00:05]} Ra7 {[%emt 0:17:08]} 22. e6 {[%emt 0:02:22]} fxe6 {[%emt 0:01:51]} 23. Qxe6+ {[%emt 0:00:03]} Kh8 {[%emt 0:00:16]} 24. Bd5 {[%emt 0:09:15]} Qd8 {[%emt 0:06:49]} 25. Rae1 {[%emt 0:02:47]} Be5 {[%emt 0:07:53]} 26. Kg2 {[%emt 0:04:01]} Re7 {[%emt 0:02:35]} 27. Qg4 {[%emt 0:00:12]} Bg7 {[%emt 0:00:58]} 28. h4 {[%emt 0:01:52]} Rxe1 {[%emt 0:05:31]} 29. Rxe1 {[%emt 0:00:02]} d3 {[%emt 0:00:44]} 30. Rd1 {[%emt 0:04:32] White is more active.} Qb6 {[%emt 0:04:11]} 31. Bf3 {[%emt 0:01:24]} Bxb2 {[%emt 0:05:27]} 32. Rxd3 {[%emt 0:00:15]} Be5 {[%emt 0:00:40]} 33. h5 {[%emt 0:00:36]} gxh5 {[%emt 0:01:55]} 34. Qxh5 {[%emt 0:00:05]} b4 {[%emt 0:01:46]} 35. Rd2 $40 {[%emt 0:02:13][%mdl 128] White wants a kill.} Qa7 {[%emt 0:00:53]} 36. Bd5 {[%emt 0:00:37] Inhibits Qf7.} Qg7 {[%emt 0:00:29]} 37. Re2 {[%emt 0:01:12]} Qg6 {[%emt 0:02:15]} 38. Qh4 {[%emt 0:00:16]} Qd3 $2 {[%emt 0:01:07][%mdl 8192] [#]} (38... Qf5 $16) 39. Be4 $1 {[%emt 0:01:15] Weighted Error Value: White=0.04 (flawless) /Black=0.09 (flawless)} 1-0

[Event "Italian-ch Semifinal 2022"]
[Site "Acqui Terme"]
[Date "2022.06.19"]
[Round "9.3"]
[White "Palozza, Christian"]
[Black "Genocchio, Daniele"]
[Result "0-1"]
[ECO "A62"]
[WhiteElo "2284"]
[BlackElo "2365"]
[Annotator "TA"]
[PlyCount "178"]
[EventDate "2022.06.15"]
[EventType "swiss"]
[EventCountry "ITA"]
[SourceTitle "playchess.com"]
[Source "ChessBase"]
[SourceQuality "1"]
[TimeControl "40/5400+30:1800+30"]

{[%evp 19,178,27,35,33,45,29,28,20,34,13,0,0,0,0,43,21,43,27,42,36,42,49,36,-8,-26,-28,-13,-28,0,0,0,0,0,-37,0,0,17,-31,0,0,0,0,0,0,0,-35,-24,-27,-32,-45,-16,-98,-32,-74,0,0,0,0,22,5,74,0,0,-83,-76,-85,-111,-307,-299,-301,-303,-29977,-29978,-29978,-29979,-29984,-29985,-29985,-29984,-29983,-29984,-29984,-12814,-5419,-5289,-29979,-394,-385,-385,-135,-8,-199,-70,-103,-21,-1879,-1737,-1294,-1317,-1167,-979,-906,-855,-1257,-1301,-1097,-975,-2157,-2110,-2010,-2007,-1003,-8,-8,0,-525,0,-8,-8,-8,0,-8,0,-8,-8,-8,-8,-8,-8,-8,-8,-8,-8,-8,0,-29971,-29971,-29973,-29974,-29972,-29975,-29969,-29976,-29976,-29975,-29977,-29978,-29978,-29979,-29979,-29980,-29980,-29981,-29979,-29982,-29983,-29984,-29984,-29985,-29985,-29986]} 1. d4 {[%emt 0:00:02]} Nf6 {[%emt 0:18:58]} 2. c4 {[%emt 0:00:03]} e6 {[%emt 0:00:25]} 3. g3 {[%emt 0:00:07]} c5 {[%emt 0:00:50]} 4. d5 {[%emt 0:00:05]} exd5 {[%emt 0:00:19]} 5. cxd5 {[%emt 0:00:05]} d6 {[%emt 0:00:03]} 6. Nc3 {[%emt 0:00:34]} g6 {[%emt 0:00:28]} 7. Bg2 {[%emt 0:00:06]} Bg7 {[%emt 0:00:06]} 8. Nf3 {[%emt 0:00:04]} O-O {[%emt 0:00:38]} 9. O-O {[%emt 0:00:03]} Nbd7 {[%emt 0:04:07]} 10. Bf4 {[%emt 0:02:36]} Qe7 {[%emt 0:00:50]} 11. Re1 {[%emt 0:01:27] A62: Modern Benoni: Fianchetto Variation without early ...Nbd7.} (11. e4 $5) 11... a6 {[%emt 0:01:35]} 12. a4 {[%emt 0:00:05] Inhibits b5.} Rb8 {[%emt 0:05:16]} 13. Rb1 {[%emt 0:08:35] White has an edge.} Re8 {[%emt 0:03:34]} 14. Qc1 {[%emt 0:14:17] [#]} Ng4 $146 {[%emt 0:11:18]} ({Predecessor:} 14... b5 15. axb5 axb5 16. b4 c4 17. Nd4 Rb6 18. Ncxb5 Ne5 19. Nc3 Nfg4 20. Qd2 Rxb4 21. Rxb4 Nd3 22. Nc6 Qf6 23. exd3 Rxe1+ 24. Qxe1 Qxc3 25. Qxc3 Bxc3 26. Rb8 {1-0 (26) Torres,J (2267)-Herrera,M (2052) Medellin 2017}) 15. Bg5 {[%emt 0:04:17]} Qf8 {[%emt 0:03:15]} 16. b4 {[%emt 0:01:43]} h6 {[%emt 0:15:33]} 17. Bd2 {[%emt 0:03:04]} cxb4 {[%emt 0:00:10]} 18. Rxb4 {[%emt 0:00:22]} Nc5 {[%emt 0:00:03]} 19. h3 {[%emt 0:05:16]} Nf6 {[%emt 0:01:11][%cal Bg4f6,Bf6d7,Bd7c5][%mdl 32]} 20. Nd4 {[%emt 0:07:16]} Nfd7 {[%emt 0:00:31]} 21. Nb3 {[%emt 0:07:56]} Nxb3 {[%emt 0:04:35]} 22. Rxb3 {[%emt 0:00:01]} Nc5 {[%emt 0:00:18]} 23. Rb4 {[%emt 0:01:52]} Bd7 {[%emt 0:01:17]} 24. a5 {[%emt 0:02:02]} Rbc8 {[%emt 0:02:22][%cal Oc5a4]} 25. Qa3 {[%emt 0:01:54] Inhibits Na4.} f5 {[%emt 0:05:24]} 26. Na2 {[%emt 0:12:56]} Bb5 {[%emt 0:01:54]} (26... g5 $15) 27. Nc3 $11 {[%emt 0:00:13]} Bd7 {[%emt 0:00:14]} 28. Na2 {[%emt 0:00:04]} (28. e3 $11) 28... Rc7 {[%emt 0:09:01]} 29. Be3 {[%emt 0:09:01]} Bb5 {[%emt 0:06:49]} 30. Nc3 {[%emt 0:01:40]} Rxe3 {[%emt 0:00:03]} 31. fxe3 {[%emt 0:00:09]} Bd7 {[%emt 0:01:00] This bishop pair is nice.} 32. Rc4 {[%emt 0:02:54]} Qe7 {[%emt 0:01:04]} 33. e4 {[%emt 0:01:37]} Qg5 {[%emt 0:00:09]} 34. Nd1 {[%emt 0:03:33]} Bb5 {[%emt 0:00:30]} 35. Rc2 {[%emt 0:00:58]} (35. h4 $11 {was the only way to keep the balance.} Qd2 36. Qb4) 35... fxe4 {[%emt 0:03:24]} (35... Bd4+ $1 $17 36. Kh1 Nd3 $1 37. Qxd6 (37. Rxc7 $2 Qxg3 38. Rc8+ Kg7 $19) 37... Rxc2 38. exd3 Rxg2 $1 {[%mdl 512]} 39. Kxg2 (39. Qb8+ $2 Kh7 $19) 39... Qd2+ 40. Kf3 Qxe1 41. Qxg6+ Kf8 42. Qxf5+ Ke8 43. Qc8+ Ke7 44. Qe6+ Kd8 45. Qd6+ Bd7 46. Qf8+ Be8 47. Qd6+ Bd7 48. Qf8+ Be8 49. Qd6+ Kc8 50. Qe6+ Bd7 51. Qg8+ Kc7 52. d6+ Kxd6 53. Qd5+ Kc7 54. Qc4+ Kb8 55. Qxd4 Qxd1+ 56. Kf2 Qd2+ 57. Kg1 Qc1+ 58. Kg2 Qc2+ 59. Kf3 Bxh3 60. Qh8+ Ka7 61. Qd4+ Ka8 62. Qh8+ Qc8 63. Qxh6 Bg4+ 64. Kg2 Qc2+ 65. Kg1 Qd1+ 66. Kh2 Qe2+ 67. Kg1 Qe1+ 68. Kg2 Qxa5) 36. Kh2 {[%emt 0:01:37]} Bd4 {[%emt 0:00:44] Black is much more active.} (36... Qxd5 37. Nc3 Bxc3 38. Qxc3 $14) (36... Rf7 $1 $17) 37. Rf1 {[%emt 0:02:18]} Re7 {[%emt 0:00:05]} (37... Qxd5 38. Nc3 Qe6 39. Nxe4 $1 $16) 38. Rf4 {[%emt 0:06:13]} h5 {[%emt 0:00:34]} 39. h4 {[%emt 0:00:59]} Qh6 {[%emt 0:00:10]} (39... Qxd5 $11 {keeps the balance.} 40. Ne3 (40. Nc3 Qc4 $11) 40... Bxe3 41. Qxe3 Qe5) 40. Nc3 {[%emt 0:00:00]} (40. Nf2 $1 $16 {[%cal Rf2e4]}) 40... Be5 {[%emt 0:00:00]} 41. Rf1 {[%emt 0:05:18]} (41. Nxb5 $11 Bxf4 42. Rxc5 dxc5 43. Qxc5) 41... Qe3 $1 $17 {[%emt 0:17:18]} 42. Nxb5 {[%emt 0:01:29]} Nd3 $1 {[%emt 0:00:23]} 43. exd3 $2 {[%emt 0:12:33]} (43. Rc8+ $2 Kh7 44. Rff8 Qxg3+ 45. Kg1 Qe1+ 46. Bf1 Qxh4 $1 47. Rh8+ Bxh8 $19) (43. Bf3 $17 {is the only way for White.} axb5 44. exd3 (44. Rc8+ $2 Kh7 $19) 44... exf3 45. Rcf2) 43... Qxg3+ $19 {[%emt 0:01:04]} 44. Kg1 {[%emt 0:00:06][%cal Od3e4]} axb5 {[%emt 0:09:53]} 45. Qb4 $2 {[%emt 0:03:01]} (45. Rff2 $19 e3 46. Rf3 Qe1+ 47. Bf1) 45... Qh2+ {[%emt 0:00:49]} 46. Kf2 {[%emt 0:00:01]} Qxh4+ {[%emt 0:01:16]} 47. Kg1 {[%emt 0:07:41]} Bh2+ {[%emt 0:01:45][%cal Be5h2,Bh2f4,Bf4e3][%mdl 32]} 48. Kh1 {[%emt 0:00:02]} Bf4+ {[%emt 0:00:48]} 49. Kg1 {[%emt 0:01:04]} Qh2+ $1 {[%emt 0:01:50]} 50. Kf2 {[%emt 0:00:01]} Qg3+ {[%emt 0:00:07]} (50... exd3 $142 51. Qc3 Be3+ 52. Ke1 Bd4+ 53. Kd1 Bxc3 54. Rxc3 Qxg2 55. Rc8+ Kh7 56. Rh1 Qxh1+ 57. Kd2 Re2+ 58. Kc3 Qc1+ 59. Kd4 Qxc8 60. Kxd3 Qc4#) 51. Kg1 {[%emt 0:00:49]} Be3+ $1 {[%emt 0:00:42]} 52. Rff2 {[%emt 0:01:33]} Rf7 $2 {[%emt 0:00:21]} (52... exd3 {mates} 53. Rcd2 Rf7 54. Qb2 Rxf2 55. Rxf2 d2 56. Qxd2 Bxd2 57. Rf3 Qe1+ 58. Bf1 g5 59. Rf5 Qg3+ 60. Bg2 Be3+ 61. Kf1 Qg4 62. Bh3 Qxh3+ 63. Ke2 Qxf5 64. Kxe3 g4 65. a6 bxa6 66. Kd2 g3 67. Kc3 g2 68. Kb4 g1=Q 69. Ka5 Qa1+ 70. Kb6 Qc8 71. Ka7 Qg1#) 53. Qb2 {[%emt 0:00:47] Threatening mate with Rc8+.} Rxf2 {[%emt 0:00:40] Chess con chili.} (53... Bxf2+ 54. Rxf2 exd3 55. Qd4 $19) 54. Rxf2 {[%emt 0:00:02][%cal Od3e4] [#]} exd3 $40 {[%emt 0:01:13][%mdl 128] Black is up to no good.} (54... Bxf2+ $6 55. Qxf2 Qxd3 56. Qf4 $11 (56. Qf6 Qg3 $11)) (54... b4 $1 $17 55. Qf6 (55. dxe4 $2 b3 $19) 55... Bxf2+ 56. Qxf2 Qxd3) 55. Kf1 $2 {[%emt 0:01:35] [#]} (55. Qf6 $1 $11) 55... Bxf2 {[%emt 0:00:04]} (55... Qxf2+ 56. Qxf2 Bxf2 57. Kxf2 $11) (55... Qg4 $1 $19 {[%cal Rg4d1]} 56. Bf3 Qg3) 56. Qxf2 $15 {[%emt 0:00:04]} Qe5 {[%emt 0:00:53]} (56... Qg5 $17 {( -> ...Qc1+)} 57. Be4 Qg4) 57. Qe1 {[%emt 0:00:01][%mdl 8192]} (57. Qd2 $11) 57... Qf4+ $19 {[%emt 0:01:07]} 58. Kg1 {[%emt 0:00:27]} d2 {[%emt 0:00:00]} 59. Qd1 {[%emt 0:01:11]} b4 {[%emt 0:00:23][%cal Bb5b4,Bb4b3][%mdl 32] Threatens to win with ...b3!} 60. Bf3 {[%emt 0:00:15]} Qe3+ {[%emt 0:00:11]} 61. Kg2 {[%emt 0:00:20]} b3 {[%emt 0:00:32]} 62. Qb1 {[%emt 0:00:13]} Kg7 {[%emt 0:00:48] White must now prevent ...Qc3.} 63. Qb2+ {[%emt 0:00:42]} Kf7 {[%emt 0:00:21][%cal Oe3f3] aiming for ...Qxf3+!} 64. Bd1 {[%emt 0:00:01]} Qe4+ {[%emt 0:00:34]} 65. Kh2 {[%emt 0:01:09]} Qh4+ $2 {[%emt 0:00:01]} ({Better is} 65... Qe5+ $19 66. Qxe5 dxe5 67. Bxb3 Ke7) 66. Kg2 $11 {[%emt 0:00:10]} Qe4+ $2 {[%emt 0:00:01][%mdl 8192]} (66... Qg5+ $11 67. Kf1 Qf6+ 68. Qxf6+ Kxf6 69. Bxb3 h4) 67. Kh2 $19 {[%emt 0:00:05]} Qh4+ $2 {[%emt 0:01:30]} ({Black should try} 67... Qe5+ $19 68. Qxe5 dxe5 69. Bxb3 Ke7) 68. Kg2 $11 {[%emt 0:00:01]} Qg5+ {[%emt 0:00:04]} 69. Kf2 $1 {[%emt 0:00:42]} Qf4+ {[%emt 0:01:02]} ({Of course not} 69... Qh4+ $6 70. Kg2 $19) 70. Kg2 {[%emt 0:00:15]} Qg5+ {[%emt 0:00:27]} (70... Qe4+ 71. Kh2 $19) 71. Kf2 $1 {[%emt 0:00:01]} Qf6+ {[%emt 0:00:34]} ({But not} 71... Qh4+ $6 72. Kg2 $19) 72. Qxf6+ {[%emt 0:00:04]} Kxf6 {[%emt 0:00:01]} 73. Bxb3 {[%emt 0:00:12][%mdl 4096] Endgame KB-KP} Ke5 {[%emt 0:00:11]} 74. Ke3 $1 {[%emt 0:04:06]} h4 {[%emt 0:00:38] Hoping for ...h3.} 75. Bd1 $1 {[%emt 0:00:38]} h3 {[%emt 0:00:43]} 76. Kf3 $1 {[%emt 0:00:10]} Kxd5 {[%emt 0:00:56]} 77. Kg3 $2 {[%emt 0:00:00][%mdl 8192]} (77. Ke3 $11) 77... Kc4 {[%emt 0:00:29] Black mates.} 78. Kxh3 {[%emt 0:00:09]} Kc3 {[%emt 0:00:30]} 79. Kg4 {[%emt 0:00:05]} Kb2 {[%emt 0:00:09]} 80. Kg5 {[%emt 0:00:02]} Kc1 {[%emt 0:00:06]} 81. Bg4 {[%emt 0:00:02]} d1=Q {[%emt 0:00:19]} 82. Bxd1 {[%emt 0:00:02]} Kxd1 {[%emt 0:00:05]} 83. Kxg6 {[%emt 0:00:03] KPP-KP} Kc2 {[%emt 0:00:11]} 84. Kf5 {[%emt 0:00:03]} Kc3 {[%emt 0:00:18]} 85. Ke6 {[%emt 0:00:13]} Kb4 {[%emt 0:00:15]} 86. Kxd6 {[%emt 0:00:07]} Kxa5 {[%emt 0:00:05]} 87. Kc5 {[%emt 0:00:15]} b5 {[%emt 0:00:45]} 88. Kd4 {[%emt 0:00:03]} Kb4 {[%emt 0:00:04]} 89. Kd3 {[%emt 0:00:04]} Kb3 {[%emt 0:00:04] Weighted Error Value: White=0.41/Black=0.20 (precise)} 0-1

[Event "Italian-ch Semifinal 2022"]
[Site "Acqui Terme"]
[Date "2022.06.19"]
[Round "9.4"]
[White "Lumachi, Gabriele"]
[Black "Pasini, Nicolo"]
[Result "1-0"]
[ECO "A56"]
[WhiteElo "2347"]
[BlackElo "2227"]
[Annotator "TA"]
[PlyCount "61"]
[EventDate "2022.06.15"]
[EventType "swiss"]
[EventCountry "ITA"]
[SourceTitle "playchess.com"]
[Source "ChessBase"]
[SourceQuality "1"]
[TimeControl "40/5400+30:1800+30"]

{[%evp 9,60,54,50,57,61,46,37,38,71,71,95,61,60,66,54,41,46,45,25,0,0,0,32,29,26,0,-12,-33,19,11,48,22,36,7,0,10,311,300,295,310,1320,1264,2665,2597,29991,29992,29992,29993,29993,29994,29994,29995,29999]} 1. d4 {[%emt 0:04:55]} Nf6 {[%emt 0:01:03]} 2. c4 {[%emt 0:00:30]} c5 {[%emt 0:00:28]} 3. d5 {[%emt 0:00:39]} a6 {[%emt 0:00:13]} 4. a4 {[%emt 0:00:22]} d6 {[%emt 0:00:08]} 5. Nc3 {[%emt 0:00:17]} g6 {[%emt 0:00:14]} 6. e4 {[%emt 0:00:33] A56: Czech Benoni.} e6 {[%emt 0:00:15]} 7. Nge2 {[%emt 0:02:50]} Bg7 {[%emt 0:00:20]} 8. Ng3 {[%emt 0:00:45] [#] White is slightly better.} a5 $146 {[%emt 0:03:16]} ({Predecessor:} 8... h5 9. Be2 h4 10. Nf1 h3 11. g4 e5 12. Ng3 Nh7 13. O-O Qh4 14. f3 Nd7 {½-½ (39) Kim,S (2295)-Andreikin,D (2724) Chess.com INT 2022}) 9. Be2 {[%emt 0:04:02] White is more active.} e5 {[%emt 0:01:05]} 10. f4 {[%emt 0:07:42]} exf4 $1 {[%emt 0:01:30]} 11. Bxf4 {[%emt 0:00:13]} O-O {[%emt 0:00:07]} 12. O-O {[%emt 0:01:07]} Qe7 {[%emt 0:00:37]} 13. e5 {[%emt 0:08:39]} dxe5 {[%emt 0:02:37]} 14. Bg5 {[%emt 0:00:16] Nce4 is the strong threat.} (14. d6 $5 {[%cal Rd6e7]} Qe6 15. Bg5 $11) 14... h6 {[%emt 0:04:11]} 15. d6 {[%emt 0:03:19]} Qe6 {[%emt 0:07:11]} (15... Qd8 $5 {[%cal Rh6g5]} 16. Be3 Nc6 $11) 16. Bxf6 {[%emt 0:03:20]} Bxf6 {[%emt 0:00:08]} 17. Nge4 {[%emt 0:01:30]} (17. Bf3 $5 {[%cal Rf3d5]} Ra6 18. Nb5 Qxc4 19. Bd5 $14) 17... Bd8 {[%emt 0:00:02]} 18. Qd2 {[%emt 0:08:55]} f5 {[%emt 0:14:22]} (18... Kg7 $15) 19. Qxh6 $11 {[%emt 0:00:47]} g5 {[%emt 0:00:05] [#]} 20. Qh5 $36 {[%emt 0:07:00][%mdl 2048] White has the initiative.} Qf7 {[%emt 0:06:31]} 21. Nd5 {[%emt 0:01:12] Strongly threatening Ne7+. Dancing on a razor blade.} ({Don't blunder} 21. Nxc5 $2 Qxh5 22. Bxh5 Bb6 $19) 21... Qxh5 {[%emt 0:22:48]} 22. Bxh5 {[%emt 0:00:08]} Na6 $2 {[%emt 0:00:53][%mdl 8192] Loses the game.} (22... fxe4 $2 23. Ne7+ Bxe7 24. dxe7 Rxf1+ 25. Rxf1 $18) (22... Nc6 $1 $11 23. Nxc5 b6) 23. Ne7+ $18 {[%emt 0:07:16] Pair of Knights!} Kg7 {[%emt 0:00:23] [#]} 24. g4 $1 {[%emt 0:01:00][%cal Rg4f5]} ({Worse is} 24. Nxg5 Kh6 $11) 24... fxe4 {[%emt 0:06:41]} (24... f4 25. Nxg5 Nb4) 25. Rxf8 {[%emt 0:00:25] White threatens Raf1 and mate.} Kxf8 {[%emt 0:00:03]} 26. Rf1+ {[%emt 0:00:22]} Bf5 {[%emt 0:01:17]} 27. Rxf5+ {[%emt 0:00:13] White mates.} Kg7 {[%emt 0:00:03]} 28. Rf7+ {[%emt 0:01:15]} Kh8 {[%emt 0:00:13]} 29. Nf5 {[%emt 0:02:33]} e3 {[%emt 0:01:42]} 30. Bg6 {[%emt 0:00:16][%cal Rf7f8]} e2 {[%emt 0:00:24]} 31. Rf8# {[%emt 0:00:11] Weighted Error Value: White=0.06 (flawless) /Black=0.44} 1-0